Cogmind - Beta 14 @@@ ROGUE MODE // 2025.03.10 @ 17:51:18 Player: winnking222 Result: Destroyed by AW-46X(R) with Subdweller Laser Performance ------------- Evolutions (0) 0 Regions Visited (2) 400 Robots Destroyed (30) 150 Value Destroyed (666) 666 Prototype IDs (0) 0 Alien Tech Used (0) 0 Bonus (0) 0 TOTAL SCORE: 1216 Bonus ------- None Cogmind --------- Core Integrity 0/250 Matter 275/300 Energy 230/250 System Corruption 1% Temperature Cool (6) Movement Rolling (110) Ox2 Location -10/Subcaves Parts ------- > --- POWER (1) -------- Ion Engine > --- PROPULSION (2) --- Light Treads Wheel > --- UTILITY (2) ------ Scrap Shield > --- WEAPON (2) ------- Subdweller Machine Gun Battle Cannon > --- INVENTORY (5) ---- Ion Engine Subdweller Monowheel Heat Sink Medium Matter Pod (100) Subdweller Beam Cannon Peak State ------------ > --- POWER ------------ Ion Engine > --- PROPULSION ------- Light Treads Wheel > --- UTILITY ---------- High-capacity Storage Unit Utility Shielding > --- WEAPON ----------- Subdweller Beam Cannon Battle Cannon > --- INVENTORY -------- Ion Engine Subdweller Power Source Subdweller Power Source Aluminum Leg Subdweller Monowheel Heat Sink Heat Sink Medium Matter Pod Scrap Shield Medium Laser Medium Laser Medium Laser Beam Cannon Assault Rifle Subdweller Machine Gun Subdweller Machine Gun Grenade Launcher [Rating: 11] Favorites ----------- Power Ion Engine Engine Ion Engine Propulsion Light Treads Treads Light Treads Wheel Wheel Utility Utility Shielding Storage High-capacity Storage Unit Protection Utility Shielding Weapon Assault Rifle Energy Gun Particle Gun Energy Cannon Beam Cannon Ballistic Gun Assault Rifle Ballistic Cannon Battle Cannon Launcher Grenade Launcher Build | -11 -10 -10 ------- Run | Yrd Mat Sub Slots Evolved . | . . . Power . | . . . Propulsion . | . . . Utility . | . . . Weapon . | . . . Parts Attached 20 | 6 6 8 Power 2 | 1 . 1 Engine 2 | 1 . 1 Core . | . . . Reactor . | . . . Propulsion 5 | 2 1 2 Treads 4 | 2 1 1 Leg . | . . . Wheel 1 | . . 1 Hover . | . . . Flight . | . . . Utility 4 | 1 2 1 Device . | . . . Storage 2 | 1 1 . Processor . | . . . Hackware . | . . . Protection 2 | . 1 1 Artifact . | . . . Weapon 9 | 2 3 4 Energy Gun 2 | 1 1 . Energy Cannon 2 | . . 2 Ballistic Gun 3 | 1 1 1 Ballistic Cannon 1 | . . 1 Launcher 1 | . 1 . Special Weapon . | . . . Impact Weapon . | . . . Slashing Weapon . | . . . Piercing Weapon . | . . . Special Melee Weapon . | . . . Unidentified Prototypes . | . . . Parts Lost 5 | . . 5 Power 1 | . . 1 Propulsion 2 | . . 2 Utility . | . . . Weapon 2 | . . 2 Highest Loss Streak 2 | . . 2 To Critical Strikes . | . . . Average Slot Usage (%) 96 | . 98 95 Engine 13 | . 14 13 Treads 24 | . 28 21 Wheel 3 | . . 6 Storage 11 | . 14 10 Protection 13 | . 12 13 Energy Gun 6 | . 13 . Energy Cannon 8 | . . 14 Ballistic Gun 9 | . 12 7 Ballistic Cannon 2 | . . 4 Peak Build Rating 11 | 6 9 11 Average Rating 8 | 5 8 9 On Entrance 5 | . 6 9 Naked Turns . | . . . Heaviest Build 57 | 14 51 57 Greatest Support 40 | 40 40 40 Greatest Overweight (x) 5 | . 1 5 Average Overweight (x) 1 | . . 2 Largest Inventory Capacity 20 | 8 20 20 Average Capacity 15 | 7 16 15 Most Carried 18 | 5 14 18 Average Carried 10 | 1 9 12 Final Capacity 20 | 8 20 5 Final Carried 14 | 2 14 5 Class Distribution -------------------- 100% | Mutant Dominant Class ---------------- Mutant | -10/Materials Mutant | -10/Subcaves Resources | -11 -10 -10 ----------- Run | Yrd Mat Sub Matter Collected 748 | 283 336 129 Remotely . | . . . Salvage Created 855 | 91 491 273 Parts 57 | 5 33 19 Haulers Intercepted 1 | . 1 . Recyclers Shooed 1 | . 1 . Parts Field Recycled . | . . . Retrieved Matter . | . . . Parts Self-Destructed 16 | . . 16 Prevented . | . . . Kills | -11 -10 -10 ------- Run | Yrd Mat Sub Combat Hostiles Destroyed 20 | . 11 9 Guns 12 | . 8 4 Cannons 5 | . . 5 AOE 3 | . 3 . Classes Destroyed 9 | 3 5 1 Worker 3 | 2 1 . Builder 2 | . 2 . Tunneler 1 | 1 . . Hauler 1 | . 1 . Recycler 1 | 1 . . Watcher 2 | . 2 . Swarmer 6 | . 3 3 Grunt 10 | . 8 2 Subdweller 4 | . . 4 Best Kill Streak 4 | 2 4 3 Combat Bots Only 3 | . 3 3 Max Kills in Single Turn 2 | 1 2 1 Gunslinging . | . . . Exploded 1 | . 1 . Melee . | . . . Uniques/NPCs Destroyed . | . . . Combat | -11 -10 -10 -------- Run | Yrd Mat Sub Hostile Shots Fired 104 | . 29 75 Missed 36 | . 9 27 Damage Taken 1124 | . 270 854 Core 261 | . 83 178 Absorbed by Shields . | . . . Redirected to Shielding 8 | . 3 5 Core Remaining (%) 100 | 100 . . Volleys Fired 78 | 10 33 35 Largest 2 | 2 2 2 Hottest 140 | 70 95 140 Shots Fired 152 | 20 65 67 Gun 112 | 20 58 34 Cannon 33 | . . 33 Launcher 7 | . 7 . Special . | . . . Kinetic 69 | 10 29 30 Thermal 76 | 10 29 37 Explosive 7 | . 7 . Electromagnetic . | . . . Robot Hit Streak 12 | 4 6 12 Robot Miss Streak 4 | 2 4 2 Penetration Max . | . . . Secondary Targets . | . . . Shots Hit Robots 101 | 12 39 50 Core Hits 46 | 5 24 17 Critical Kills . | . . . Critical Parts Destroyed . | . . . Critical Strikes 2 | 1 1 . Burn 2 | 1 1 . Melee Attacks . | . . . Impact . | . . . Slashing . | . . . Piercing . | . . . Sneak Attacks . | . . . Combat Hostiles . | . . . Follow-up Attacks . | . . . Damage Inflicted 1908 | 147 949 812 Guns 1006 | 147 529 330 Cannons 482 | . . 482 Explosions 420 | . 420 . Melee . | . . . Ramming . | . . . Kinetic 631 | 97 247 287 Thermal 857 | 50 282 525 Explosive 420 | . 420 . Electromagnetic . | . . . Impact . | . . . Slashing . | . . . Piercing . | . . . Highest Corruption 1 | . 1 1 Average Corruption 1 | . 1 1 Corruption Purged . | . . . Corruption Blocked . | . . . Effects 21 | . 8 13 Message Errors 8 | . 2 6 Matter Fused 3 | . 2 1 Heat Flow Errors 4 | . 1 3 Energy Discharges 1 | . . 1 Data Loss (minor) 2 | . 1 1 Data Loss (major) 2 | . 1 1 Misfires 1 | . 1 . Overload Shots . | . . . Overflow Damage . | . . . Projectiles . | . . . Explosions . | . . . Melee . | . . . Knockbacks . | . . . Impact . | . . . Kinetic . | . . . Secondary . | . . . Self-Inflicted Damage 81 | . 81 . Shots 3 | . 3 . Rammed . | . . . Targets Rammed . | . . . Kicked . | . . . Crushed . | . . . Highest Temperature 266 | 27 242 266 Average Temperature 48 | 10 44 90 Received Heat Transfer 297 | . 72 225 Siege Activations . | . . . Robots Corrupted . | . . . Combat Hostiles . | . . . Parts Fried . | . . . Impact Corruptions . | . . . Robots Melted . | . . . Combat Hostiles . | . . . Parts Melted 2 | . 1 1 Heat Transferred 2072 | 222 777 1073 Parts Sabotaged . | . . . Parts Stolen . | . . . Parts Stripped . | . . . Power Chain Reactions . | . . . Alert | -11 -10 -10 ------- Run | Yrd Mat Sub Peak Influence 370 | 20 370 . Initial 13 | . 13 . Average 94 | 7 108 . Maximum Alert Level 1 | . 1 . Low Security (%) 87 | 100 85 . Level 1 12 | . 14 . Level 2 . | . . . Level 3 . | . . . Level 4 . | . . . Level 5 . | . . . High Security . | . . . Max Security . | . . . Squads Dispatched 3 | . 3 . Investigation 1 | . 1 . Extermination . | . . . Reinforcement 2 | . 2 . Assault . | . . . Garrison . | . . . Intercept . | . . . Searches Triggered . | . . . Construction Impeded . | . . . Haulers Reinforced . | . . . Active Scanning Responses . | . . . Cargo Convoy Interrupts . | . . . Stealth | -11 -10 -10 --------- Run | Yrd Mat Sub Distress Signals 2 | . 2 . Communications Jammed . | . . . Distress Signals . | . . . Times Spotted 37 | . 23 14 Peak Tracking Total 6 | . 4 6 Tactical Retreats 2 | . . 2 Traps | -11 -10 -10 ------- Run | Yrd Mat Sub Traps Triggered . | . . . Indirectly . | . . . Trap Hack Attempts . | . . . Triggered . | . . . Disarmed . | . . . Reprogrammed . | . . . Reused . | . . . Traps Extracted . | . . . Installed . | . . . Triggered . | . . . Machines | -11 -10 -10 ---------- Run | Yrd Mat Sub Machines Disabled 3 | . 2 1 Max in Single Turn 1 | . 1 1 Machines Repaired . | . . . Machines Dismantled . | . . . Machines Sabotaged . | . . . Overloaded Fab Kills . | . . . Hacking | -11 -10 -10 --------- Run | Yrd Mat Sub Machines Accessed 6 | . 4 2 Terminals 3 | . 3 . Fabricators . | . . . Repair Stations . | . . . Recycling Units 1 | . 1 . Scanalyzers . | . . . Garrison Access . | . . . Total Hacks 10 | . 7 3 Successful 7 | . 4 3 Failed 3 | . 3 . Catastrophic 2 | . 2 . Database Lockouts . | . . . Manual . | . . . Terminals 6 | . 6 . Fabricators . | . . . Repair Stations . | . . . Recycling Units 1 | . 1 . Scanalyzers . | . . . Garrison Access . | . . . Terminal Hacks 6 | . 3 3 Record 1 | . . 1 Open Door 1 | . . 1 Branch Access Points 1 | . 1 . Locate Traps 2 | . 2 . Release Object 1 | . . 1 Fabricator Hacks . | . . . Repair Station Hacks . | . . . Recycling Unit Hacks 1 | . 1 . Report Inventory 1 | . 1 . Scanalyzer . | . . . Garrison Access Hacks . | . . . Unauthorized Hacks . | . . . Terminals . | . . . Fabricators . | . . . Repair Stations . | . . . Recycling Units . | . . . Scanalyzers . | . . . Garrison Access . | . . . Data Cores Recovered . | . . . Used . | . . . Hacking Detections 1 | . 1 . Full Trace Events 1 | . 1 . Feedback Events 1 | . 1 . Corruption 1 | . 1 . Feedback Blocked . | . . . Robot Schematics Acquired . | . . . Robots Built . | . . . Authchips . | . . . Time . | . . . Total Robot Build Rating . | . . . Part Schematics Acquired . | . . . Parts Built . | . . . Authchips . | . . . Time . | . . . Total Part Build Rating . | . . . Parts Repaired . | . . . Time . | . . . Parts Recycled . | . . . Recycled Matter . | . . . Retrieved Matter . | . . . Retrieved Components . | . . . Parts Scanalyzed . | . . . Part Schematics Acquired . | . . . Parts Damaged . | . . . Bothacking | -11 -10 -10 ------------ Run | Yrd Mat Sub Used RIF Installer . | . . . Robots Hacked . | . . . Non-combat . | . . . Combat . | . . . Robot Hacks Applied . | . . . Relay Couplers Released . | . . . Fabnet Peak Effective % . | . . . Robots Rewired . | . . . Allies Hacked . | . . . Hacks Repelled . | . . . Allies | -11 -10 -10 -------- Run | Yrd Mat Sub Total Allies . | . . . Largest Group . | . . . Highest-Rated Group . | . . . Highest-Rated Ally . | . . . Total Orders . | . . . Ally Attacks . | . . . Total Damage . | . . . Kills . | . . . Allies Corrupted . | . . . Allies Melted . | . . . Intel | -11 -10 -10 ------- Run | Yrd Mat Sub Robot Analysis Total . | . . . Derelict Logs Recovered 1 | . . 1 Drone Launches . | . . . Drone Recoveries . | . . . Exploration | -11 -10 -10 ------------- Run | Yrd Mat Sub Turns Passed 3539 | 229 1513 1797 Spaces Moved 1354 | 124 618 612 Core 11 | 11 . . Treads 1093 | 113 618 362 Legs . | . . . Wheels 250 | . . 250 Hover . | . . . Flight . | . . . Fastest Speed 50 | 50 160 95 Average Speed 202 | 150 213 201 Slowest Speed 320 | 160 240 320 Overloaded Moves . | . . . Propulsion Burnouts . | . . . Robots Hopped . | . . . Cave-ins Triggered . | . . . Exploration Rate (%) 40 | 6 70 44 Regions Visited 2 Branch Regions 1 Pre-discovered Areas . | . . . Known Exits Taken . | . . . Unknown Exits Taken 2 | 1 1 . Scrap Searched . | . . . Spaces Dug . | . . . Terrain Destroyed 28 | . 27 1 Melee . | . . . Projectile 1 | . . 1 AOE 27 | . 27 . Terrain Rammed . | . . . Walls Destroyed . | . . . Machines Disabled . | . . . Actions | -11 -10 -10 --------- Run | Yrd Mat Sub Total 2003 | 147 747 1109 Wait 510 | . 74 436 Move 1352 | 123 617 612 Hop . | . . . Pick Up 32 | 8 14 10 Fast Attach . | . . . Attach 13 | 6 1 6 Detach . | . . . Swap 7 | . 5 2 Drop 10 | . 3 7 Fire 78 | 10 33 35 Melee . | . . . Ram . | . . . Kick . | . . . Crush . | . . . Escape Stasis . | . . . Rewire . | . . . Trap . | . . . Miscellaneous 1 | . . 1 Route ------- -11/Scrapyard -10/Materials (discovered 4 exits: [*Mat] / *Min x2 / *Sub) -10/Subcaves (discovered 2 exits: [*Mat x2]) History --------- Turn | Location | Event 9 | -11/Scrapyard | Discovered new exit (range 16) 230 | -11/Scrapyard | Entered Materials 307 | -10/Materials | Build established: Mutant 443 | -10/Materials | Discovered new exit (range 16) 543 | -10/Materials | Identified exit to Mines 1028 | -10/Materials | Discovered new exit (range 12) 1316 | -10/Materials | Discovered new exit (range 16) 1743 | -10/Materials | Entered Subcaves 1798 | -10/Subcaves | Ambushed by angry Subdweller bent on revenge 1816 | -10/Subcaves | Core integrity fell below 50% 1857 | -10/Subcaves | Learned Materials machine intel 1857 | -10/Subcaves | Discovered new exit (range 11) 2733 | -10/Subcaves | Core integrity fell below 20% 3055 | -10/Subcaves | Released subatomizers from SUBCON Basin 3520 | -10/Subcaves | Discovered new exit (range 12) 3540 | -10/Subcaves | Destroyed by AW-46X(R) with Subdweller Laser Last Messages --------------- 03035_ Dropped Sub. Machine Gun. 03043_ Dropped Med. Laser. 03044_ Dropped Beam Cannon. 03045_ Dropped Utility Shielding. 03045_ Dropped Hcp. Storage Unit. 03055_ Released subatomizers from SUBCON Basin. 03090_ Subatomizers dissect the Sub. Machine Gun. 03200_ System corrupted: Substantial component data lost. 03200_ Subatomizers dissect the Sub. Machine Gun, destroying it. 03215_ Subatomizers dissect the Assault Rifle. 03332_ Subatomizers dissect the Assault Rifle, destroying it. 03342_ Subatomizers dissect the Sub. Power Source. 03439_ Subatomizers dissect the Sub. Power Source, destroying it. 03451_ Subatomizers dissect the Med. Laser. 03488_ Subatomizers dissect the Utility Shielding. 03496_ Acquired Sub. Machine Gun. 03499_ Subatomizers dissect the Utility Shielding. 03504_ Acquired Ion Engine. 03520_ EXIT=FOUND 03536_ Sub. Beam Cannon shoots sparks and powers down. Map ----- +----------------------------------------------------+ | ?????????????????????????????????????????????????? | | ?????????????????????????########????????????????? | | ?????????????????????????#""""""#????????????????? | | ?????????????????????????#""""X"#????????????????? | | ?????????????????????????# [&"#????????????????? | | ?????????????????????????# [ "#????????????????? | | ?????????????????????????#"*""""#????????????????? | | ?????????????????????????##]#####????????????????? | | ?????????????????????????#"!""#??????????????????? | | ?????????????????????????#X[] ##?????????????????? | | ????????????????????????###!= ##????????????????? | | ?????????????????????#### ####! ###??????????????? | | ????????????????????## # ## ## #?????###??????? | | ????????????????????# ### #????## ####???? | | ????????????????????# #???## ##?## | | ????????????????????### ## ##??# ### | | ??????????????????????# ##### #??# # ### %# | | ??????????????????????# #???# #??## ##?##### | | ??????????????????????# ##??# #### #??????? | | ??????????????????????### #### #??????? | | ????????????????????????## ## ## ## ##??????? | | ????????????????????????## ##### #######???????? | | ???????????????????????## # ## ##?????????????? | | ???????????????????#####R# #??????????????? | | ???????????????????# R ## ###??????????????? | | ???????????????????# # #@# ####?????????????????? | | ???????????????????# #####????????????????????? | | ??????????????????#"" ?????????????????????????? | | ????????????????? " ?????????????????????????? | | ???????????????? #??????????????????????????? | | ??????????????? #???????????????????????????? | | ??????????????? ????????????????????????????? | | ??????????????